fUSD/lending_fUSD_20250616
["ID","MTS","AMOUNT","RATE_DAILY","PERIOD"]
[366139598,1750083057685,-909.21,0.00016602,2]
[366139599,1750083057695,-310.37793,0.00016602,2]
[366139600,1750083057705,-310.37793,0.00016602,2]
[366139601,1750083057716,-490.0,0.00016602,2]
[366139602,1750083057726,-972.36,0.00016602,2]
[366139603,1750083057735,-666.98,0.00016602,2]
[366139604,1750083057745,-151.0,0.00016602,2]
[366139605,1750083057754,-310.37793,0.00016602,2]
[366139606,1750083057765,-151.0,0.00016602,2]
[366139607,1750083057775,-310.37793,0.00016602,2]
[366139608,1750083057784,-785.98,0.00016602,2]
[366139609,1750083057796,-151.178491,0.00016602,2]
[366139610,1750083057806,-1468.059575,0.00016602,2]
[366139611,1750083057815,-2361.65,0.00016602,2]
[366139612,1750083057824,-1196.16,0.00016602,2]
[366139613,1750083057834,-490.0,0.00016602,2]
[366139614,1750083057844,-610.04,0.00016602,2]
[366139615,1750083057854,-833.05,0.00016602,2]
[366139616,1750083057863,-759.38,0.00016602,2]
[366139617,1750083057874,-1010.83,0.00016602,2]
[366139618,1750083057885,-1056.79,0.00016602,2]
[366139619,1750083057895,-1033.8,0.00016602,2]
[366139620,1750083057904,-517.32,0.00016602,2]
[366139621,1750083057914,-1649.96,0.00016602,2]
[366139622,1750083057924,-765.29,0.00016602,2]
[366139623,1750083057934,-490.0,0.00016602,2]
[366139624,1750083057943,-3738.1,0.00016602,2]
[366139625,1750083057954,-150.0,0.00016603,2]
[366139626,1750083057963,-303.45446474,0.00016607,2]
[366139627,1750083057973,-150.0,0.00016612,2]
[366139628,1750083057982,-150.0,0.00016616,2]
[366139629,1750083057992,-150.0,0.00016616,2]
[366139630,1750083058001,-150.0,0.00016618,2]
[366139631,1750083058010,-150.0,0.00016619,2]
[366139632,1750083058020,-150.0,0.00016623,2]
[366139633,1750083058030,-457.85152929,0.00016624,2]
[366139634,1750083058039,-150.0,0.00016628,2]
[366139635,1750083058048,-150.0,0.00016629,2]
[366139636,1750083058058,-151.36736868,0.00016629,2]
[366139637,1750083058068,-180.76021211,0.00016629,2]
[366139638,1750083058078,-150.0,0.00016629,2]
[366139639,1750083058088,-150.0,0.00016629,2]
[366139640,1750083058098,-150.0,0.00016629,2]
[366139641,1750083058108,-150.0,0.00016629,2]
[366139642,1750083058118,-150.0,0.00016629,2]
[366139643,1750083058128,-202.25101604,0.00016629,2]
[366139644,1750083058138,-500.0,0.00016629,2]
[366139645,1750083058147,-150.0,0.00016629,2]
[366139646,1750083058157,-200.0,0.00016629,2]
[366139647,1750083058167,-230.74400587,0.00016632,2]
[366139648,1750083058176,-182.87005665,0.00016632,2]
[366139649,1750083058187,-150.0,0.00016633,2]
[366139650,1750083058197,-150.0,0.00016636,2]
[366139651,1750083058207,-300.0,0.00016641,2]
[366139652,1750083058217,-552.75701269,0.00016641,2]
[366139653,1750083058227,-1493.94,0.00016641,2]
[366139654,1750083058238,-1493.94,0.00016641,2]
[366139655,1750083058247,-57001.4186666,0.00016641,2]
[366139656,1750083058257,-3595.6706687,0.00016641,2]
[366139657,1750083058266,-94202.24361884,0.00016641,2]
[366139658,1750083058276,-24724.388927,0.00016642,2]
[366139659,1750083058285,-151.0,0.00016642,2]
[366139660,1750083058295,-151.0,0.00016642,2]
[366139661,1750083058305,-252.720699,0.00016642,2]
[366139662,1750083058315,-151.0,0.00016642,2]
[366139663,1750083058324,-151.0,0.00016642,2]
[366139664,1750083058333,-151.0,0.00016642,2]
[366139665,1750083058343,-151.0,0.00016642,2]
[366139666,1750083058352,-151.0,0.00016642,2]
[366139667,1750083058362,-151.0,0.00016642,2]
[366139668,1750083058372,-284.184316,0.00016642,2]
[366139669,1750083058384,-151.0,0.00016642,2]
[366139670,1750083058393,-151.0,0.00016642,2]
[366139671,1750083058404,-171.918919,0.00016642,2]
[366139672,1750083058413,-151.0,0.00016642,2]
[366139673,1750083058423,-171.918919,0.00016642,2]
[366139674,1750083058435,-385.684186,0.00016642,2]
[366139675,1750083058445,-385.684186,0.00016642,2]
[366139676,1750083058455,-1090.713649,0.00016642,2]
[366139677,1750083058464,-1090.713649,0.00016642,2]
[366139678,1750083058473,-200.662057,0.00016642,2]
[366139679,1750083058483,-200.662057,0.00016642,2]
[366139680,1750083058492,-151.0,0.00016642,2]
[366139681,1750083058502,-347.2116,0.00016642,2]
[366139682,1750083058512,-151.0,0.00016642,2]
[366139683,1750083058521,-347.2116,0.00016642,2]
[366139684,1750083058532,-151.0,0.00016642,2]
[366139685,1750083058542,-242.861632,0.00016642,2]
[366139686,1750083058551,-242.861632,0.00016642,2]
[366139687,1750083058561,-230.747168,0.00016642,2]
[366139688,1750083058571,-203.982442,0.00016642,2]
[366139689,1750083058580,-203.982442,0.00016642,2]
[366139690,1750083058590,-151.0,0.00016642,2]
[366139691,1750083058600,-544.379265,0.00016642,2]
[366139692,1750083058610,-544.379265,0.00016642,2]
[366139693,1750083058620,-151.0,0.00016642,2]
[366139694,1750083058630,-230.081965,0.00016642,2]
[366139695,1750083058640,-230.081965,0.00016642,2]
[366139696,1750083058650,-151.0,0.00016642,2]
[366139697,1750083058659,-814.142819,0.00016642,2]
[366139698,1750083058670,-814.142819,0.00016642,2]
[366139699,1750083058682,-151.0,0.00016642,2]
[366139700,1750083058692,-199.199109,0.00016642,2]
[366139701,1750083058702,-151.0,0.00016642,2]
[366139702,1750083058711,-512.381056,0.00016642,2]
[366139703,1750083058721,-199.199109,0.00016642,2]
[366139704,1750083058730,-512.381056,0.00016642,2]
[366139705,1750083058740,-393.636506,0.00016642,2]
[366139706,1750083058749,-204.446949,0.00016642,2]
[366139707,1750083058758,-393.636506,0.00016642,2]
[366139708,1750083058767,-204.446949,0.00016642,2]
[366139709,1750083058776,-224.504685,0.00016642,2]
[366139710,1750083058786,-224.504685,0.00016642,2]
[366139711,1750083058798,-226.046328,0.00016642,2]
[366139712,1750083058807,-226.046328,0.00016642,2]
[366139713,1750083058816,-151.0,0.00016642,2]
[366139714,1750083058826,-161.374802,0.00016642,2]
[366139715,1750083058836,-161.374802,0.00016642,2]
[366139716,1750083058845,-334.899797,0.00016642,2]
[366139717,1750083058855,-334.899797,0.00016642,2]
[366139718,1750083058864,-310.37793,0.00016642,2]
[366139719,1750083058875,-151.0,0.00016642,2]
[366139720,1750083058884,-310.37793,0.00016642,2]
[366139721,1750083058893,-151.0,0.00016648,2]
[366139722,1750083058903,-151.0,0.00016648,2]
[366139723,1750083058911,-151.0,0.00016648,2]
[366139724,1750083058921,-151.0,0.00016648,2]
[366139725,1750083058932,-151.0,0.00016648,2]
[366139726,1750083058941,-151.0,0.00016648,2]
[366139727,1750083058950,-274.234,0.00016649,2]
[366139728,1750083058960,-186.105,0.00016649,2]
[366139729,1750083058969,-150.0,0.00016649,2]
[366139730,1750083058979,-1000.0,0.00016649,2]
[366139731,1750083058988,-1000.0,0.00016649,2]
[366139732,1750083058997,-1000.0,0.00016649,2]
[366139733,1750083059007,-1000.0,0.00016649,2]
[366139734,1750083059016,-1000.0,0.00016649,2]
[366139735,1750083059025,-1000.0,0.00016649,2]
[366139736,1750083059034,-1000.0,0.00016649,2]
[366139737,1750083059043,-1000.0,0.00016649,2]
[366139738,1750083059054,-1000.0,0.00016649,2]
[366139739,1750083059063,-1000.0,0.00016649,2]
[366139740,1750083059072,-1000.0,0.00016649,2]
[366139741,1750083059081,-1000.0,0.00016649,2]
[366139742,1750083059091,-1000.0,0.00016649,2]
[366139743,1750083059101,-1000.0,0.00016649,2]
[366139744,1750083059110,-1000.0,0.00016649,2]
[366139745,1750083059120,-1000.0,0.00016649,2]
[366139746,1750083059129,-1000.0,0.00016649,2]
[366139747,1750083059138,-1000.0,0.00016649,2]
[366139748,1750083059147,-1000.0,0.00016649,2]
[366139749,1750083059156,-1000.0,0.00016649,2]
[366139750,1750083059166,-1000.0,0.00016649,2]
[366139751,1750083059176,-1000.0,0.00016649,2]
[366139752,1750083059186,-1000.0,0.00016649,2]
[366139753,1750083059196,-1000.0,0.00016649,2]
[366139754,1750083059205,-1000.0,0.00016649,2]
[366139755,1750083059215,-1000.0,0.00016649,2]
[366139756,1750083059225,-452.31530473,0.00016649,2]
[366139757,1750083059235,-151.0,0.00016653,2]
[366139758,1750083059244,-150.221,0.00016653,2]
[366139759,1750083059254,-286.896,0.00016653,2]
[366139760,1750083059264,-150.0,0.00016653,2]
[366139761,1750083059273,-150.391,0.00016653,2]
[366139762,1750083059282,-946.0,0.00016653,2]
[366139763,1750083059292,-3333.0,0.00016653,2]
[366139764,1750083059301,-637.0,0.00016653,2]
[366139765,1750083059311,-802.0,0.00016653,2]
[366139766,1750083059321,-151.0,0.00016654,2]
[366139767,1750083059330,-151.0,0.00016654,2]
[366139768,1750083059341,-151.0,0.00016654,2]
[366139769,1750083059351,-151.0,0.00016654,2]
[366139770,1750083059360,-151.0,0.00016654,2]
[366139771,1750083059370,-151.0,0.00016654,2]
[366139772,1750083059380,-151.0,0.00016654,2]
[366139773,1750083059390,-151.0,0.00016654,2]
[366139774,1750083059400,-151.0,0.00016654,2]
[366139775,1750083059409,-151.0,0.00016654,2]
[366139776,1750083059419,-151.0,0.00016654,2]
[366139777,1750083059430,-150.0,0.00016657,2]
[366139778,1750083059440,-200.0,0.00016657,2]
[366139779,1750083059449,-200.0,0.00016657,2]
[366139780,1750083059460,-306.54858585,0.00016657,2]
[366139781,1750083059470,-150.0,0.00016657,2]
[366139782,1750083059481,-457.85152929,0.00016659,2]
[366139783,1750083059491,-151.0,0.00016665,2]
[366139784,1750083059500,-151.0,0.00016665,2]
[366139785,1750083059510,-544.379265,0.00016665,2]
[366139786,1750083059520,-544.379265,0.00016665,2]
[366139787,1750083059530,-267.718482,0.00016665,2]
[366139788,1750083059539,-814.142819,0.00016665,2]
[366139789,1750083059549,-814.142819,0.00016665,2]
[366139790,1750083059558,-151.0,0.00016665,2]
[366139791,1750083059568,-199.199109,0.00016665,2]
[366139792,1750083059577,-151.0,0.00016665,2]
[366139793,1750083059587,-512.381056,0.00016665,2]
[366139794,1750083059596,-199.199109,0.00016665,2]
[366139795,1750083059606,-512.381056,0.00016665,2]
[366139796,1750083059616,-393.636506,0.00016665,2]
[366139797,1750083059625,-204.446949,0.00016665,2]
[366139798,1750083059635,-393.636506,0.00016665,2]
[366139799,1750083059645,-204.446949,0.00016665,2]
[366139800,1750083059654,-224.504685,0.00016665,2]
[366139801,1750083059664,-224.504685,0.00016665,2]
[366139802,1750083059673,-226.046328,0.00016665,2]
[366139803,1750083059684,-226.046328,0.00016665,2]
[366139804,1750083059694,-161.374802,0.00016665,2]
[366139805,1750083059703,-161.374802,0.00016665,2]
[366139806,1750083059714,-334.899797,0.00016665,2]
[366139807,1750083059723,-334.899797,0.00016665,2]
[366139808,1750083059733,-310.37793,0.00016665,2]
[366139809,1750083059742,-310.37793,0.00016665,2]
[366139810,1750083059753,-303.45446474,0.00016665,2]
[366139811,1750083059763,-151.0,0.00016666,2]
[366139812,1750083059772,-151.0,0.00016666,2]
[366139813,1750083059782,-151.0,0.00016667,2]
[366139814,1750083059792,-151.0,0.00016667,2]
[366139815,1750083059805,-151.0,0.00016667,2]
[366139816,1750083059814,-151.0,0.00016667,2]
[366139817,1750083059824,-151.0,0.00016667,2]
[366139818,1750083059833,-151.0,0.00016667,2]
[366139819,1750083059843,-281.915627,0.00016667,2]
[366139820,1750083059852,-219.699347,0.00016667,2]
[366139821,1750083059861,-219.699347,0.00016667,2]
[366139822,1750083059872,-385.684186,0.00016667,2]
[366139823,1750083059882,-385.684186,0.00016667,2]
[366139824,1750083059892,-200.662057,0.00016667,2]
[366139825,1750083059902,-200.662057,0.00016667,2]
[366139826,1750083059911,-151.0,0.00016667,2]
[366139827,1750083059922,-242.861632,0.00016667,2]
[366139828,1750083059932,-242.861632,0.00016667,2]
[366139829,1750083059942,-203.982442,0.00016667,2]
[366139830,1750083059952,-203.982442,0.00016667,2]
[366139831,1750083059962,-230.081965,0.00016667,2]
[366139832,1750083059972,-230.081965,0.00016667,2]
[366139833,1750083059982,-151.0,0.00016667,2]
[366139834,1750083059991,-576.436073,0.00016671,2]
[366139835,1750083060002,-576.436073,0.00016671,2]
[366139836,1750083060011,-167.28540589,0.00016673,2]
[366139837,1750083060021,-500.0,0.00016673,2]
[366139838,1750083060030,-470.58509326,0.00016673,2]
[366139839,1750083060040,-500.0,0.00016673,2]
[366139840,1750083060050,-500.0,0.00016673,2]
[366139841,1750083060060,-500.0,0.00016673,2]
[366139842,1750083060070,-522.81888161,0.00016673,2]
[366139843,1750083060080,-500.0,0.00016673,2]
[366139844,1750083060089,-500.0,0.00016673,2]
[366139845,1750083060099,-500.0,0.00016673,2]
[366139846,1750083060109,-500.0,0.00016673,2]
[366139847,1750083060119,-500.0,0.00016673,2]
[366139848,1750083060129,-500.0,0.00016673,2]
[366139849,1750083060139,-500.0,0.00016673,2]
[366139850,1750083060149,-500.0,0.00016673,2]
[366139851,1750083060159,-387.12167847,0.00016673,2]
[366139852,1750083060169,-500.0,0.00016673,2]
[366139853,1750083060180,-500.0,0.00016673,2]
[366139854,1750083060191,-205.42608653,0.00016673,2]
[366139855,1750083060200,-503.58100641,0.00016673,2]
[366139856,1750083060210,-358.57296802,0.00016673,2]
[366139857,1750083060220,-162.10942601,0.00016673,2]
[366139858,1750083060230,-502.32082111,0.00016673,2]
[366139859,1750083060240,-500.91731703,0.00016673,2]
[366139860,1750083060249,-151.0,0.00016673,2]
[366139861,1750083060259,-152.0,0.00016678,4]
[366139862,1750083060269,-592.0,0.00016683,2]
[366139863,1750083060279,-200.0,0.00016684,2]
[366139864,1750083060289,-150.0,0.00016684,2]
[366139865,1750083060299,-150.0,0.00016685,2]
[366139866,1750083060308,-151.0,0.0001669,2]
[366139867,1750083060318,-151.0,0.0001669,2]
[366139868,1750083060327,-471.563809,0.0001669,2]
[366139869,1750083060337,-471.563809,0.0001669,2]
[366139870,1750083060346,-151.0,0.0001669,2]
[366139871,1750083060356,-151.0,0.0001669,2]
[366139872,1750083060365,-151.0,0.0001669,2]
[366139873,1750083060375,-151.0,0.0001669,2]
[366139874,1750083060384,-151.0,0.0001669,2]
[366139875,1750083060394,-151.0,0.0001669,2]
[366139876,1750083060403,-151.0,0.0001669,2]
[366139877,1750083060413,-151.0,0.0001669,2]
[366139878,1750083060423,-347.2116,0.0001669,2]
[366139879,1750083060436,-347.2116,0.0001669,2]
[366139880,1750083060446,-151.0,0.00016693,2]
[366139881,1750083060456,-160.98239,0.00016693,2]
[366139882,1750083060466,-160.98239,0.00016693,2]
[366139883,1750083060477,-248.136437,0.00016693,2]
[366139884,1750083060486,-248.136437,0.00016693,2]
[366139885,1750083060496,-151.0,0.00016693,2]
[366139886,1750083060508,-228.283542,0.00016693,2]
[366139887,1750083060519,-228.283542,0.00016693,2]
[366139888,1750083060529,-343.756474,0.00016693,2]
[366139889,1750083060539,-343.756474,0.00016693,2]
[366139890,1750083060549,-698.713597,0.00016693,2]
[366139891,1750083060559,-698.713597,0.00016693,2]
[366139892,1750083060568,-151.0,0.00016693,2]
[366139893,1750083060578,-151.0,0.00016693,2]
[366139894,1750083060589,-151.0,0.00016693,2]
[366139895,1750083060599,-151.0,0.00016693,2]
[366139896,1750083060608,-151.0,0.00016693,2]
[366139897,1750083060620,-151.0,0.00016693,2]
[366139898,1750083060630,-151.0,0.00016693,2]
[366139899,1750083060639,-151.0,0.00016693,2]
[366139900,1750083060649,-151.0,0.00016693,2]
[366139901,1750083060659,-151.0,0.00016693,2]
[366139902,1750083060669,-151.0,0.00016693,2]
[366139903,1750083060681,-151.0,0.00016693,2]
[366139904,1750083060691,-151.0,0.00016693,2]
[366139905,1750083060701,-466.817949,0.00016693,2]
[366139906,1750083060711,-466.817949,0.00016693,2]
[366139907,1750083060720,-292.624328,0.00016693,2]
[366139908,1750083060730,-292.624328,0.00016693,2]
[366139909,1750083060740,-457.85152929,0.00016693,2]
[366139910,1750083060750,-2854.98,0.000167,2]
[366139911,1750083060759,-151.0,0.00016701,2]
[366139912,1750083060769,-263.283404,0.00016701,2]
[366139913,1750083060779,-263.283404,0.00016701,2]
[366139914,1750083060794,-151.0,0.00016701,2]
[366139915,1750083060806,-179.944934,0.00016701,2]
[366139916,1750083060816,-179.944934,0.00016701,2]
[366139917,1750083060825,-151.0,0.00016701,2]
[366139918,1750083060835,-150.0,0.00016712,2]
[366139919,1750083060846,-230.74400587,0.00016721,2]
[366139920,1750083060855,-4238.40988245,0.00016721,2]
[366139921,1750083060865,-719.66559333,0.00016721,2]
[366139922,1750083060877,-303.45446474,0.00016724,2]
[366139923,1750083060887,-457.85152929,0.00016728,2]
[366139924,1750083060897,-250.0,0.00016739,2]
[366139925,1750083060906,-540.13,0.00016755,2]
[366139926,1750083060915,-500.0,0.00016755,2]
[366139927,1750083060925,-500.0,0.00016755,2]
[366139928,1750083060936,-500.0,0.00016755,2]
[366139929,1750083060946,-500.0,0.00016755,2]
[366139930,1750083060956,-500.0,0.00016755,2]
[366139931,1750083060965,-500.0,0.00016755,2]
[366139932,1750083060975,-602.85,0.00016755,2]
[366139933,1750083060985,-500.0,0.00016755,2]
[366139934,1750083060994,-500.0,0.00016755,2]
[366139935,1750083061003,-4740.0,0.0001676,2]
[366139936,1750083061013,-151.0,0.0001676,2]
[366139937,1750083061022,-151.0,0.0001676,2]
[366139938,1750083061031,-171.918919,0.0001676,2]
[366139939,1750083061041,-202.263444,0.0001676,2]
[366139940,1750083061050,-171.918919,0.0001676,2]
[366139941,1750083061059,-1090.713649,0.0001676,2]
[366139942,1750083061069,-1090.713649,0.0001676,2]
[366139943,1750083061079,-151.0,0.0001676,2]
[366139944,1750083061089,-151.0,0.0001676,2]
[366139945,1750083061099,-457.85152929,0.00016762,2]
[366139946,1750083061109,-300.0,0.00016764,2]
[366139947,1750083061118,-666.0,0.00016765,2]
[366139948,1750083061127,-300.0,0.00016765,2]
[366139949,1750083061137,-544.379265,0.00016765,2]
[366139950,1750083061147,-544.379265,0.00016765,2]
[366139951,1750083061156,-151.0,0.00016765,2]
[366139952,1750083061166,-199.199109,0.00016765,2]
[366139953,1750083061176,-151.0,0.00016765,2]
[366139954,1750083061186,-512.381056,0.00016765,2]
[366139955,1750083061196,-199.199109,0.00016765,2]
[366139956,1750083061206,-512.381056,0.00016765,2]
[366139957,1750083061215,-393.636506,0.00016765,2]
[366139958,1750083061225,-393.636506,0.00016765,2]
[366139959,1750083061235,-224.504685,0.00016765,2]
[366139960,1750083061246,-224.504685,0.00016765,2]
[366139961,1750083061258,-226.046328,0.00016765,2]
[366139962,1750083061268,-226.046328,0.00016765,2]
[366139963,1750083061277,-151.0,0.00016765,2]
[366139964,1750083061287,-161.374802,0.00016765,2]
[366139965,1750083061297,-1493.94,0.00016765,2]
[366139966,1750083061307,-161.374802,0.00016765,2]
[366139967,1750083061316,-334.899797,0.00016765,2]
[366139968,1750083061326,-334.899797,0.00016765,2]
[366139969,1750083061336,-310.37793,0.00016765,2]
[366139970,1750083061346,-310.37793,0.00016765,2]
[366139971,1750083061356,-666.0,0.00016766,2]
[366139972,1750083061365,-673.06473908,0.00016766,2]
[366139973,1750083061375,-300.0,0.00016766,2]
[366139974,1750083061384,-174.261911,0.00016766,2]
[366139975,1750083061394,-174.261911,0.00016766,2]
[366139976,1750083061404,-174.261911,0.00016766,2]
[366139977,1750083061414,-174.261911,0.00016766,2]
[366139978,1750083061423,-400.161435,0.00016766,2]
[366139979,1750083061433,-400.161435,0.00016766,2]
[366139980,1750083061443,-814.142819,0.00016766,2]
[366139981,1750083061453,-814.142819,0.00016766,2]
[366139982,1750083061464,-3371.21,0.00016766,2]
[366139983,1750083061474,-1251.17,0.00016766,2]
[366139984,1750083061484,-1561.68,0.00016766,2]
[366139985,1750083061494,-1720.27,0.00016766,2]
[366139986,1750083061504,-1839.28,0.00016766,2]
[366139987,1750083061514,-1659.03,0.00016766,2]
[366139988,1750083061524,-1049.72,0.00016766,2]
[366139989,1750083061535,-204.446949,0.00016766,2]
[366139990,1750083061545,-3553.48,0.00016766,2]
[366139991,1750083061555,-204.446949,0.00016766,2]
[366139992,1750083061565,-1493.94,0.00016766,2]
[366139993,1750083061576,-1493.94,0.00016766,2]
[366139994,1750083061587,-1493.94,0.00016766,2]
[366139995,1750083061597,-1493.94,0.00016766,2]
[366139996,1750083061607,-1493.94,0.00016766,2]
[366139997,1750083061617,-1493.94,0.00016766,2]
[366139998,1750083061627,-1493.94,0.00016766,2]
[366139999,1750083061637,-1493.94,0.00016766,2]
[366140000,1750083061647,-1493.94,0.00016766,2]
[366140001,1750083061657,-1493.94,0.00016766,2]
[366140002,1750083061667,-1493.94,0.00016766,2]
[366140003,1750083061677,-1493.94,0.00016766,2]
[366140004,1750083061688,-1493.94,0.00016766,2]
[366140005,1750083061698,-1493.94,0.00016766,2]
[366140006,1750083061709,-1493.94,0.00016766,2]
[366140007,1750083061719,-1494.1199998,0.00016766,2]
[366140008,1750083061728,-300.0,0.00016766,2]
[366140009,1750083061738,-666.0,0.00016766,2]
[366140010,1750083061747,-300.0,0.00016766,2]
[366140011,1750083061757,-223.37906162,0.00016766,2]
[366140012,1750083061767,-300.0,0.00016766,2]
[366140013,1750083061777,-8293.49289969,0.00016766,2]
[366140014,1750083061896,-69992.223108,0.00016767,2]
[366140015,1750083062426,-15582.65379968,0.00016767,2]
[366140016,1750083062442,-23292.31936148,0.00016767,2]
[366140017,1750083062455,-26690.94500003,0.00016767,2]
[366140018,1750083062470,-454.30575317,0.00016767,2]
[366140019,1750083062488,-2304.54060825,0.00016767,2]
[366140020,1750083062505,-536.1971764,0.00016767,2]
[366140021,1750083063160,-256.57632,0.00016375,2]
[366140022,1750083063184,-352.407,0.00016375,2]
[366140023,1750083064493,-1062.42796296,0.000163,2]
[366140024,1750083064531,-1880.99332424,0.000163,2]
[366140025,1750083064541,-366.14656449,0.00016375,2]
[366140026,1750083064552,-248.86685413,0.0001642,2]
[366140027,1750083064562,-854.0,0.00016524,2]
[366140028,1750083064571,-1923.39119346,0.00016767,2]
[366140029,1750083064584,-42656.93821677,0.00016767,2]
[366140030,1750083064602,-975.12988449,0.00016411,2]
[366140031,1750083064612,-43670.6014477,0.00016767,2]
[366140032,1750083064632,-2074.15119554,0.00016767,2]
[366140033,1750083087577,506.0,0.00024658,120]
[366140034,1750083101984,200.0,0.00014729,2]
[366140035,1750083118376,500.0,0.00015068,2]
[366140036,1750083132106,201.0,0.00014729,2]
[366140037,1750083180372,1259.0,0.0002465,120]
[366140038,1750083180558,1319.0,0.0002465,120]
[366140039,1750083238299,985.0,0.0002465,120]
[366140040,1750083247810,174.37,0.00015402,2]
[366140041,1750083354925,248.0,0.0002465,120]
[366140042,1750083436014,1000.0,0.00015385,2]
[366140044,1750083521252,155.1,0.00013699,2]
[366140045,1750083612357,203.0,0.00015198,2]
[366140046,1750083888573,812.39,0.00015377,2]
[366140047,1750083943590,6383.06,0.00015415,2]
[366140048,1750083971870,203.0,0.0001506,2]
[366140058,1750084130595,13154.59,0.00015394,2]
[366140065,1750084179580,484.2,0.00015399,2]
[366140066,1750084194666,200.0,0.00015411,7]
[366140076,1750084232356,-590.62520021,0.00015777,4]
[366140077,1750084232370,-9.37479979,0.00015777,4]
[366140078,1750084232380,-166.56,0.00015854,2]
[366140079,1750084232390,-77.56520021,0.0001589,2]
[366140080,1750084232471,-600.0,0.0001589,2]
[366140082,1750084232557,-345.09412951,0.0001589,2]
[366140083,1750084232567,-207.4,0.0001589,2]
[366140084,1750084232577,-1200.0,0.00015899,2]
[366140085,1750084232587,-2907.86,0.000159,2]
[366140086,1750084232596,-2907.86,0.000159,2]
[366140087,1750084232606,-2907.86,0.000159,2]
[366140088,1750084232616,-2907.86,0.000159,2]
[366140089,1750084232627,-203.0,0.00015941,3]
[366140090,1750084232636,-2907.86,0.00016,2]
[366140092,1750084232646,-151.0,0.0001608,2]
[366140094,1750084232656,-151.0,0.00016095,2]
[366140095,1750084232665,-151.0,0.0001611,2]
[366140096,1750084232674,-600.0,0.00016164,2]
[366140097,1750084232684,-550.0,0.00016199,2]
[366140098,1750084232693,-455.2,0.000162,2]
[366140099,1750084232703,-1593.96,0.000162,2]
[366140100,1750084232713,-461.62,0.000162,2]
[366140101,1750084232722,-461.62,0.000162,2]
[366140102,1750084232734,-461.62,0.000162,2]
[366140104,1750084232744,-461.14,0.000162,2]
[366140106,1750084232753,-208.75494478,0.000163,2]
[366140108,1750084232763,-208.75494468,0.000163,2]
[366140110,1750084232772,-208.75494468,0.000163,2]
[366140113,1750084232782,-208.75494468,0.000163,2]
[366140116,1750084232792,-208.75494468,0.000163,2]
[366140119,1750084232801,-208.75494468,0.000163,2]
[366140122,1750084232810,-208.75494468,0.000163,2]
[366140124,1750084232820,-208.75494468,0.00016312,2]
[366140125,1750084232829,-63.58260049,0.00016338,2]
[366140126,1750084232841,-91.58025545,0.00016338,2]
[366140127,1750084232851,-239.56825823,0.00016338,2]
[366140128,1750084232866,-672.089998,0.00016338,2]
[366140148,1750084238330,-3397.09211151,0.00016338,2]
[366140149,1750084238343,-822.48255068,0.00016338,2]
[366140150,1750084238352,-152.35108738,0.00016338,2]
[366140151,1750084238362,-2638.60076417,0.00016338,2]
[366140152,1750084238373,-163.9503814,0.00016338,2]
[366140153,1750084238382,-349.74521637,0.00016338,2]
[366140154,1750084238394,-2148.23,0.00016338,2]
[366140155,1750084238405,-1018.72793796,0.00016338,2]
[366140156,1750084238429,-1121.5,0.00016338,2]
[366140157,1750084238441,-1098.44,0.00016338,2]